Cogmind - Beta 17.1 @@@ ROGUE MODE // 2026.08.30 @ 06:48:59 Player: Cereal Killer Result: Destroyed by P-70 Sage with High-powered Shock Rifle Performance ------------- Evolutions (6) 3000 Regions Visited (17) 3400 Robots Destroyed (144) 720 Value Destroyed (6375) 6375 Prototype IDs (39) 780 Alien Tech Used (0) 0 Bonus (12706) 12706 TOTAL SCORE: 26981 Bonus ------- High Alert Combat Kills 406 Follower Combat Kills 652 Prayed to X0-1V1 5000 Major X0-1V1 Interference 5550 Entered Garrisons 400 Entered DSFs 500 Aligned with FarCom 300 Friendly Fire -102 Cogmind --------- Core Integrity 0/900 Matter 973/1000 Energy 220/220 System Corruption 11% Temperature Cool (0) Movement Rolling (115) Ox1 Location -4/Factory Parts ------- > --- POWER (2) -------- Micro Fission Core Light Antimatter Reactor > --- PROPULSION (6) --- Flexi-carbon Leg Compact Wheel Compact Wheel > --- UTILITY (7) ------ Advanced Heat Sink Advanced Heat Sink Advanced Coolant Injector Long-range Sensor Array X0-1V1's Piety Tracker > --- WEAPON (5) ------- Phase Gun Improved Remote Datajack Lance > --- INVENTORY (6) ---- Quantum Capacitor Improved Phase Shifter Skeleton Box CPS Tube (2) Peak State ------------ > --- POWER ------------ Light Antimatter Reactor Light Quantum Reactor > --- PROPULSION ------- Flexi-carbon Leg Myomer Leg Myomer Leg Myomer Leg Myomer Leg Myomer Leg > --- UTILITY ---------- Advanced Heat Sink Advanced Heat Sink Experimental Cooling System Coolant Injector Advanced Hacking Suite X0-1V1's Piety Tracker > --- WEAPON ----------- Plasma Rifle Heavy Mass Driver Heavy Mass Driver > --- INVENTORY -------- Quantum Capacitor Advanced Hacking Suite Skeleton Box Plasma Rifle CPS Tube [Rating: 129] Favorites ----------- Power Ion Engine Engine Ion Engine Power Core Light Nuclear Core Reactor Light Antimatter Reactor Propulsion Myomer Leg Leg Myomer Leg Wheel Wheel Hover Unit Improved Airjet Utility X0-1V1's Piety Tracker Device X0-1V1's Piety Tracker Storage Large Storage Unit Processor Improved Signal Interpreter Hackware Advanced Hacking Suite Protection Reflective Plating Weapon Cooled Particle Cannon Energy Gun Plasma Rifle Energy Cannon Cooled Particle Cannon Ballistic Gun Precision Assault Rifle Ballistic Cannon Light Cannon Launcher Long-range Missile Launcher Special Weapon Improved Remote Datajack Piercing Weapon Lance Build | -11 -10 -10 -9 -9 -9 -8 -8 -8 -7 -7 -7 -7 -5 -5 -4 -4 -4 ------- Run | Yrd Mat Min Mat Min Exi Min Mat Gar Fac Sto Rec Scr Fac DSF Fac Gar Fac Slots Evolved 12 | . . . 2 . . . 2 . 2 . . . 4 . 2 . . Power 1 | . . . . . . . . . . . . . 1 . . . . Propulsion 4 | . . . . . . . 1 . 2 . . . 1 . . . . Utility 5 | . . . 2 . . . 1 . . . . . 1 . 1 . . Weapon 2 | . . . . . . . . . . . . . 1 . 1 . . Parts Attached 141 | 6 8 3 4 . . 4 2 12 30 5 . . 2 8 5 29 23 Power 17 | 1 1 . 1 . . 1 . . 2 1 . . 1 . 2 3 4 Engine 6 | 1 1 . 1 . . 1 . . 1 1 . . . . . . . Core 5 | . . . . . . . . . 1 . . . 1 . . 1 2 Reactor 6 | . . . . . . . . . . . . . . . 2 2 2 Propulsion 43 | 2 1 1 . . . 2 1 5 9 2 . . . 5 . 9 6 Treads . | . . . . . . . . . . . . . . . . . . Leg 30 | . . . . . . . . 3 8 2 . . . 5 . 9 3 Wheel 12 | 2 1 1 . . . 2 1 2 . . . . . . . . 3 Hover 1 | . . . . . . . . . 1 . . . . . . . . Flight . | . . . . . . . . . . . . . . . . . . Utility 39 | 1 3 1 1 . . . 1 4 6 2 . . 1 3 2 7 7 Device 21 | . 2 1 1 . . . 1 1 1 . . . . 1 1 5 7 Storage 2 | 1 1 . . . . . . . . . . . . . . . . Processor 1 | . . . . . . . . . 1 . . . . . . . . Hackware 4 | . . . . . . . . . 1 . . . . 2 . 1 . Protection 11 | . . . . . . . . 3 3 2 . . 1 . 1 1 . Artifact . | . . . . . . . . . . . . . . . . . . Weapon 42 | 2 3 1 2 . . 1 . 3 13 . . . . . 1 10 6 Energy Gun 10 | 2 . . . . . . . . 2 . . . . . . 3 3 Energy Cannon 6 | . . . 2 . . . . 1 3 . . . . . . . . Ballistic Gun 11 | . 1 . . . . . . 1 6 . . . . . . 3 . Ballistic Cannon 11 | . 2 1 . . . 1 . 1 2 . . . . . . 4 . Launcher 1 | . . . . . . . . . . . . . . . 1 . . Special Weapon 2 | . . . . . . . . . . . . . . . . . 2 Impact Weapon . | . . . . . . . . . . . . . . . . . . Slashing Weapon . | . . . . . . . . . . . . . . . . . . Piercing Weapon 1 | . . . . . . . . . . . . . . . . . 1 Special Melee Weapon . | . . . . . . . . . . . . . . . . . . Unidentified Prototypes 6 | . . 1 . . . . . . 4 . . . . . 1 . . Parts Lost 82 | . 2 2 . . . 4 . 14 4 3 . . . 5 1 29 18 Power 7 | . 1 . . . . . . 1 . . . . . . . 4 1 Propulsion 32 | . 1 1 . . . 2 . 5 4 1 . . . 1 . 11 6 Utility 27 | . . . . . . 1 . 5 . 2 . . . 3 1 8 7 Weapon 16 | . . 1 . . . 1 . 3 . . . . . 1 . 6 4 Highest Loss Streak 11 | . 2 2 . . . 3 . 4 2 1 . . . 5 1 10 11 To Critical Strikes 1 | . . . . . . . . . . . . . . . . 1 . Average Backups 10 | 2 9 12 12 15 15 14 14 13 14 15 15 16 15 8 4 4 4 Power 2 | . 1 1 1 2 2 3 4 4 3 2 2 2 1 . . . . Propulsion 1 | 1 3 2 2 4 4 1 2 . . 1 1 1 1 . . . . Utility 3 | . 1 2 2 3 3 3 3 3 6 6 7 6 6 3 2 1 1 Weapon 2 | . 2 5 5 6 6 4 4 4 3 4 4 4 4 2 . 1 . Tool/Special . | . . . . . . . . . . . . . . . . . . Unused Backups 20 | . . . 3 . 2 . . . 2 1 1 2 . 5 1 . 3 Power 5 | . . . 3 . . . . . . . . . . 1 . . 1 Propulsion 3 | . . . . . 2 . . . 1 . . . . . . . . Utility 9 | . . . . . . . . . 1 1 1 2 . 2 1 . 1 Weapon 1 | . . . . . . . . . . . . . . 1 . . . Tool/Special 2 | . . . . . . . . . . . . . . 1 . . 1 Average Slot Usage (%) 86 | . 97 99 99 100 100 90 94 76 94 99 100 100 83 85 95 71 68 Engine 5 | . 14 14 11 11 11 10 8 6 3 7 7 7 5 5 2 . . Reactor 1 | . . . . . . . . . . . . . . . 4 7 4 Leg 17 | . . . . . . . . 7 33 34 35 35 27 29 30 25 10 Wheel 7 | . 28 27 22 22 22 19 25 7 . . . . . . . . 6 Device 18 | . 11 14 32 33 33 25 27 17 12 14 14 14 11 14 17 17 26 Storage 6 | . 14 14 11 11 11 10 8 8 7 7 7 7 5 1 . . . Hackware 3 | . . . . . . . . . 3 7 7 7 5 5 9 5 1 Protection 3 | . . . . . . . . 6 7 6 7 7 8 7 7 3 . Energy Gun 3 | . 13 . . . . . . . . . . . . . . 3 12 Energy Cannon 6 | . . . 8 22 22 14 8 5 1 21 21 21 16 12 10 1 . Ballistic Gun 4 | . 4 . . . . . . 7 12 . . . . 7 10 2 . Ballistic Cannon 5 | . 10 28 13 . . 10 16 9 6 . . . . . . 4 . Peak Build Rating 129 | 6 8 20 31 31 31 33 36 36 62 64 64 64 68 98 127 129 100 Average Rating 58 | 4 7 17 26 31 31 32 35 32 57 62 63 63 66 78 115 101 82 On Entrance 46 | . 6 8 20 31 31 31 33 36 35 61 63 64 64 67 98 120 75 Avg Prop Armor Cover (%) 10 | . . . . . . . . . . . . . . . . . 10 Naked Turns . | . . . . . . . . . . . . . . . . . . Heaviest Build 96 | 13 32 32 39 39 39 41 43 46 66 60 57 57 61 61 72 96 51 Greatest Support 145 | 26 26 26 20 20 20 28 38 38 70 67 64 64 64 124 124 145 75 Greatest Overweight (x) 11 | . 1 1 1 1 1 3 1 11 1 1 . . . . . . 2 Average Overweight (x) . | . . 1 1 1 1 1 1 1 . . . . . . . . . Largest Inventory Capacity 16 | 8 16 16 16 16 16 16 16 16 16 16 16 16 16 16 6 6 6 Average Capacity 12 | 7 14 16 16 16 16 16 16 16 16 16 16 16 16 8 6 6 6 Most Carried 16 | 5 14 14 16 16 16 16 15 16 16 16 16 16 16 16 6 6 6 Average Carried 11 | 2 9 12 12 15 15 14 13 13 14 15 15 15 15 8 5 5 5 Final Capacity 16 | 8 16 16 16 16 16 16 16 16 16 16 16 16 16 6 6 6 6 Final Carried 16 | 3 12 12 15 16 15 16 13 15 15 14 16 16 15 6 6 6 5 Class Distribution -------------------- 35% | Scavenger-Skirmisher 16% | Mutant 15% | Scavenger-Mutant 8% | Scavenger-Tank 6% | Skirmisher 5% | Tank 4% | Hacker-Skirmisher Dominant Class ---------------- Mutant | -10/Materials Mutant | -10/Mines Scavenger-Mutant | -9/Materials Scavenger-Mutant | -9/Mines Scavenger-Mutant | -9/Exiles Skirmisher | -8/Mines Skirmisher | -8/Materials Scavenger-Skirmisher | -8/Garrison Scavenger-Skirmisher | -7/Factory Scavenger-Skirmisher | -7/Storage Scavenger-Skirmisher | -7/Recycling Scavenger-Tank | -7/Scraptown Scavenger-Tank | -5/Factory Hacker-Skirmisher | -5/DSF Hacker-Skirmisher | -4/Factory Scavenger-Skirmisher | -4/Garrison Scavenger-Skirmisher | -4/Factory Resources | -11 -10 -10 -9 -9 -9 -8 -8 -8 -7 -7 -7 -7 -5 -5 -4 -4 -4 ----------- Run | Yrd Mat Min Mat Min Exi Min Mat Gar Fac Sto Rec Scr Fac DSF Fac Gar Fac Matter Collected 5070 | 201 272 95 140 . . 300 . 797 1343 40 10 . . 35 210 1428 199 Remotely . | . . . . . . . . . . . . . . . . . . Salvage Created 5972 | . 579 117 309 . . 476 . 421 686 947 64 . . . 375 1303 695 Parts 275 | . 37 6 13 . . 24 . 33 26 50 4 . . . 20 38 24 Haulers Intercepted 4 | . 2 . 1 . . . . . . 1 . . . . . . . Recyclers Shooed 1 | . 1 . . . . . . . . . . . . . . . . Parts Field Recycled . | . . . . . . . . . . . . . . . . . . Retrieved Matter . | . . . . . . . . . . . . . . . . . . Parts Self-Destructed . | . . . . . . . . . . . . . . . . . . Prevented . | . . . . . . . . . . . . . . . . . . Parts Restored . | . . . . . . . . . . . . . . . . . . Kills | -11 -10 -10 -9 -9 -9 -8 -8 -8 -7 -7 -7 -7 -5 -5 -4 -4 -4 ------- Run | Yrd Mat Min Mat Min Exi Min Mat Gar Fac Sto Rec Scr Fac DSF Fac Gar Fac Combat Hostiles Destroyed 118 | . 13 4 1 . . 10 . 15 18 14 1 . . . 4 27 11 Guns 49 | . 13 . . . . . . 5 12 . . . . . 2 8 9 Cannons 59 | . . 4 1 . . 10 . 8 5 14 1 . . . 2 14 . AOE 3 | . . . . . . . . . . . . . . . . 3 . Classes Destroyed 18 | . 7 . 1 . . 2 . 2 3 1 . . . . . 1 1 Worker 3 | . . . . . . 2 . . . 1 . . . . . . . Builder 2 | . 2 . . . . . . . . . . . . . . . . Tunneler 1 | . . . . . . . . . . . . . . . . . 1 Hauler 4 | . 2 . 1 . . . . . . 1 . . . . . . . Recycler 10 | . 1 . 3 . . 3 . . . 1 . . . . 1 . 1 Mechanic 1 | . 1 . . . . . . . . . . . . . . . . Operator 1 | . . . 1 . . . . . . . . . . . . . . Drone 1 | . . . . . . . . . 1 . . . . . . . . Watcher 5 | . 1 . 1 . . . . . 1 1 . . . . 1 . . Swarmer 35 | . 9 . . . . 6 . 7 3 . . . . . . 6 4 Cutter 1 | . . . . . . 1 . . . . . . . . . . . Grunt 35 | . 4 4 1 . . 3 . 2 7 4 . . . . . 6 4 Brawler 1 | . . . . . . . . . . . . . . . . 1 . Duelist 2 | . . . . . . . . . 1 . . . . . . 1 . Sentry 15 | . . . . . . . . 4 2 7 1 . . . . 1 . Specialist 2 | . . . . . . . . . . 2 . . . . . . . Hunter 11 | . . . . . . . . 2 3 . . . . . . 6 . Programmer 9 | . . . . . . . . . 1 1 . . . . 4 . 3 Thug 4 | . . . . . . . . . . . . . . . . 4 . Savage 2 | . . . . . . . . . . . . . . . . 2 . Best Kill Streak 9 | . 4 2 6 . . 5 . 6 5 6 1 . . . 3 9 8 Combat Bots Only 9 | . 3 2 1 . . 3 . 6 4 4 1 . . . 2 9 6 Max Kills in Single Turn 2 | . 2 1 1 . . 1 . 2 1 2 1 . . . 1 1 2 Gunslinging 1 | . 1 . . . . . . . . . . . . . . . . Exploded 1 | . . . . . . . . . . . . . . . . 1 . Melee . | . . . . . . . . . . . . . . . . . . Uniques/NPCs Destroyed . | . . . . . . . . . . . . . . . . . . Combat | -11 -10 -10 -9 -9 -9 -8 -8 -8 -7 -7 -7 -7 -5 -5 -4 -4 -4 -------- Run | Yrd Mat Min Mat Min Exi Min Mat Gar Fac Sto Rec Scr Fac DSF Fac Gar Fac Hostile Shots Fired 1237 | . 55 22 12 . . 82 . 94 174 169 . . . 15 23 440 151 Missed 410 | . 23 4 3 . . 26 . 32 42 61 . . . 3 5 165 46 Hits 827 | . 32 18 9 . . 56 . 62 132 108 . . . 12 18 275 105 Melee 31 | . . . . . . . . 2 20 . . . . . . 9 . Projectile 796 | . 32 18 9 . . 56 . 60 112 108 . . . 12 18 266 105 AOE 1 | . . . . . . 1 . . . . . . . . . . . Critical Strikes 25 | . . . . . . 1 . 2 2 1 . . . 1 3 9 6 Damage Taken 13192 | . 410 252 97 . . 691 . 947 1535 981 . . . 935 365 4918 2061 Core 2219 | . 142 13 . . . 130 . 131 159 170 . . . 313 . 650 511 Absorbed by Shields . | . . . . . . . . . . . . . . . . . . Ignored by Resistances 259 | . . . . . . . . 35 86 138 . . . . . . . Core Remaining (%) 60 | 100 . 63 . . . 56 . 58 . . . 26 . 58 . . . Volleys Fired 473 | . 66 12 18 . . 39 . 65 58 34 1 . . . 12 123 45 Largest 5 | . 2 2 2 . . 3 . 3 3 3 3 . . . 5 5 4 Hottest 314 | . 90 60 136 . . 136 . 166 108 90 90 . . . 159 205 314 Shots Fired 1096 | . 132 23 36 . . 93 . 178 165 102 3 . . . 51 224 89 Gun 485 | . 108 . . . . . . 54 111 . . . . . 24 100 88 Cannon 599 | . 24 23 36 . . 93 . 124 54 102 3 . . . 24 116 . Launcher 11 | . . . . . . . . . . . . . . . 3 8 . Special 1 | . . . . . . . . . . . . . . . . . 1 Kinetic 556 | . 41 23 30 . . 30 . 129 162 . . . . . 24 117 . Thermal 528 | . 91 . 6 . . 63 . 49 3 102 3 . . . 24 99 88 Explosive 11 | . . . . . . . . . . . . . . . 3 8 . Electromagnetic . | . . . . . . . . . . . . . . . . . . Robot Hit Streak 15 | . 7 6 5 . . 6 . 13 14 15 5 . . . 9 11 11 Robot Miss Streak 10 | . 5 2 2 . . 7 . 6 10 3 . . . . 4 8 4 Penetration Max 1 | . . . . . . . . 1 . . . . . . . . . Secondary Targets 6 | . 3 . . . . . . . 1 . . . . . . . 2 Max Gunslinging Chain 1 | . 1 . . . . . . . 1 . . . . . . . 1 Capacitor 34 | . . . . . . . . . . . . . . . . 34 . Shots Hit Robots 577 | . 62 14 21 . . 42 . 84 97 65 2 . . . 28 109 53 Core Hits 256 | . 29 6 7 . . 19 . 29 34 31 2 . . . 15 59 25 Critical Kills 2 | . . . . . . . . 2 . . . . . . . . . Critical Parts Destroyed 1 | . . . . . . . . . 1 . . . . . . . . Critical Strikes 28 | . 5 . 1 . . . . 3 6 . . . . . . 8 5 Burn 14 | . 5 . . . . . . . . . . . . . . 4 5 Meltdown 2 | . . . . . . . . 2 . . . . . . . . . Destroy 1 | . . . . . . . . . 1 . . . . . . . . Blast 11 | . . . 1 . . . . 1 5 . . . . . . 4 . Melee Attacks 3 | . . . . . . . . . . . . . . . . . 3 Impact . | . . . . . . . . . . . . . . . . . . Slashing . | . . . . . . . . . . . . . . . . . . Piercing 3 | . . . . . . . . . . . . . . . . . 3 Sneak Attacks . | . . . . . . . . . . . . . . . . . . Combat Hostiles . | . . . . . . . . . . . . . . . . . . Follow-up Attacks . | . . . . . . . . . . . . . . . . . . Damage Inflicted 16561 | . 783 264 363 . . 884 . 1689 2045 1907 55 . . . 941 6219 1411 Guns 5452 | . 783 . . . . . . 389 1376 . . . . . 462 1031 1411 Cannons 9367 | . . 264 363 . . 884 . 1300 669 1900 55 . . . 381 3551 . Explosions 1721 | . . . . . . . . . . . . . . . 96 1625 . Melee . | . . . . . . . . . . . . . . . . . . Ramming 21 | . . . . . . . . . . 7 . . . . 2 12 . Kinetic 7861 | . 138 264 322 . . 251 . 1041 2045 . . . . . 462 3338 . Thermal 6958 | . 645 . 41 . . 633 . 648 . 1900 55 . . . 381 1244 1411 Explosive 1721 | . . . . . . . . . . . . . . . 96 1625 . Electromagnetic . | . . . . . . . . . . . . . . . . . . Impact . | . . . . . . . . . . . . . . . . . . Slashing . | . . . . . . . . . . . . . . . . . . Piercing . | . . . . . . . . . . . . . . . . . . Highest Corruption 39 | . 2 . . . . . . 4 . . . . . . 18 39 39 Average Corruption 17 | . 2 . . . . . . 2 . . . . . . 14 30 13 Corruption Purged . | . . . . . . . . . . . . . . . . . . Corruption Blocked . | . . . . . . . . . . . . . . . . . . Effects 124 | . 2 . . . . . . 15 . . . . . . 12 70 25 Message Errors 26 | . . . . . . . . 4 . . . . . . 2 16 4 Matter Fused 27 | . 2 . . . . . . 1 . . . . . . 2 17 5 Heat Flow Errors 18 | . . . . . . . . 5 . . . . . . 2 7 4 Energy Discharges 14 | . . . . . . . . 3 . . . . . . 2 5 4 Parts Rejected 2 | . . . . . . . . . . . . . . . . 2 . Parts Fused 1 | . . . . . . . . . . . . . . . 1 . . Data Loss (minor) 10 | . . . . . . . . . . . . . . . 1 7 2 Data Loss (major) 4 | . . . . . . . . . . . . . . . . 4 . Misfires 3 | . . . . . . . . . . . . . . . . 1 2 Alerts 4 | . . . . . . . . . . . . . . . 1 1 2 Misdirections 1 | . . . . . . . . . . . . . . . 1 . . Weapon Failures 14 | . . . . . . . . 2 . . . . . . . 10 2 Overload Shots . | . . . . . . . . . . . . . . . . . . Overflow Damage 161 | . . . . . . 3 . 4 . 24 . . . . . 130 . Projectiles 150 | . . . . . . 3 . 4 . 24 . . . . . 119 . Explosions 11 | . . . . . . . . . . . . . . . . 11 . Melee . | . . . . . . . . . . . . . . . . . . Knockbacks 46 | . . 6 4 . . 2 . 7 12 . . . . . . 15 . Impact . | . . . . . . . . . . . . . . . . . . Kinetic 42 | . . 6 4 . . 2 . 7 11 . . . . . . 12 . Secondary 4 | . . . . . . . . . 1 . . . . . . 3 . Self-Inflicted Damage 51 | . . . . . . . . . . . . . . . . 51 . Shots 2 | . . . . . . . . . . . . . . . . 2 . Rammed . | . . . . . . . . . . . . . . . . . . Targets Rammed 7 | . . . . . . . . . . 1 . . . . 1 5 . Kicked 7 | . . . . . . . . . . 1 . . . . 1 5 . Crushed . | . . . . . . . . . . . . . . . . . . Highest Temperature 610 | . 180 66 27 . . 306 . 243 610 126 . . . . 138 289 181 Average Temperature 98 | . 53 35 18 . . 100 . 50 205 44 . . . . 66 106 81 Received Heat Transfer 2245 | . 84 150 54 . . 216 . 240 435 459 . . . . . 303 304 Effects 16 | . . . . . . . . . 16 . . . . . . . . Shutdowns 2 | . . . . . . . . . 2 . . . . . . . . Energy Bleed 5 | . . . . . . . . . 5 . . . . . . . . Interference 4 | . . . . . . . . . 4 . . . . . . . . Short Circuit 1 | . . . . . . . . . 1 . . . . . . . . Damage (minor) 1 | . . . . . . . . . 1 . . . . . . . . Damage (major) 2 | . . . . . . . . . 2 . . . . . . . . Damage (core) 1 | . . . . . . . . . 1 . . . . . . . . Siege Activations . | . . . . . . . . . . . . . . . . . . Martial Activations . | . . . . . . . . . . . . . . . . . . Shielding Activations . | . . . . . . . . . . . . . . . . . . Robots Disrupted . | . . . . . . . . . . . . . . . . . . Combat Hostiles . | . . . . . . . . . . . . . . . . . . Robots Corrupted . | . . . . . . . . . . . . . . . . . . Combat Hostiles . | . . . . . . . . . . . . . . . . . . Parts Fried . | . . . . . . . . . . . . . . . . . . Impact Corruptions . | . . . . . . . . . . . . . . . . . . Robots Melted 5 | . . . . . . . . 2 . . . . . . . 1 2 Combat Hostiles 5 | . . . . . . . . 2 . . . . . . . 1 2 Parts Melted 31 | . 3 . . . . 1 . 3 3 6 . . . . 1 3 11 Heat Transferred 13059 | . 2164 . 74 . . 1110 . 1147 . 2562 74 . . . 444 2552 2932 Parts Sabotaged . | . . . . . . . . . . . . . . . . . . Parts Stolen 1 | . . . . . . . . . 1 . . . . . . . . Parts Stripped . | . . . . . . . . . . . . . . . . . . Power Chain Reactions . | . . . . . . . . . . . . . . . . . . Alert | -11 -10 -10 -9 -9 -9 -8 -8 -8 -7 -7 -7 -7 -5 -5 -4 -4 -4 ------- Run | Yrd Mat Min Mat Min Exi Min Mat Gar Fac Sto Rec Scr Fac DSF Fac Gar Fac Maximum Alert Level 3 | . 1 . . . . . . 3 2 2 1 . . . . 3 1 Low Security (%) 41 | 100 83 100 100 100 . 100 100 21 . 36 51 . 100 100 100 23 3 Level 1 30 | . 16 . . . . . . 15 34 51 48 . . . . 30 96 Level 2 26 | . . . . . . . . 56 65 11 . . . . . 44 . Level 3 1 | . . . . . . . . 7 . . . . . . . 1 . Level 4 . | . . . . . . . . . . . . . . . . . . Level 5 . | . . . . . . . . . . . . . . . . . . High Security . | . . . . . . . . . . . . . . . . . . Max Security . | . . . . . . . . . . . . . . . . . . Peak Influence 764 | . 238 75 37 . . 115 24 764 477 526 216 . . . 192 762 399 Initial 401 | . . 40 25 . . . 24 15 401 201 195 . . . . 131 399 Average 271 | . 141 41 19 . . 49 24 445 409 269 199 . . . 33 390 277 Influence Increases 4609 | . 443 115 65 . . 315 . 924 541 603 21 . . . 249 1021 312 Destroy 0b10 Robot/C 2760 | . 260 80 20 . . 200 . 580 360 360 20 . . . 80 580 220 Destroy 0b10 Robot/NC 145 | . 35 . 30 . . 25 . . 5 25 . . . . 10 5 10 Destroy Leader 408 | . 46 20 14 . . 30 . 20 72 114 . . . . 22 40 30 Allied During Kill 93 | . . . . . . . . 66 . 11 . . . . . 16 . Successful Hack 101 | . 27 . . . . . . 14 20 12 . . . . 12 . 16 Disable Machine 225 | . . 15 . . . 30 . 15 30 30 . . . . 75 30 . Anti-Garrison Action 350 | . . . . . . . . 150 . . . . . . . 200 . Destroy Structure 287 | . . . 1 . . . . 34 9 51 1 . . . 50 135 6 Partial Spotted 15 | . . . . . . . . 15 . . . . . . . . . Lose Combat Pursuer 225 | . 75 . . . . 30 . 30 45 . . . . . . 15 30 Influence Decreases 4434 | . 339 154 128 2 . 251 40 184 861 547 345 176 . . 61 447 899 Entered New Map 1662 | . . 64 40 2 . . 40 9 363 243 305 176 . . . 57 363 Time Decay 1857 | . 319 70 88 . . 221 . . 458 254 40 . . . 51 . 356 Lost Part 755 | . 20 20 . . . 30 . 135 40 30 . . . . 10 290 180 Lost Ally 160 | . . . . . . . . 40 . 20 . . . . . 100 . Squads Dispatched 21 | . 1 . 2 . . 1 1 . 7 5 . . . . 2 . 2 Investigation 8 | . 1 . . . . . 1 . 5 1 . . . . . . . Extermination 6 | . . . . . . . . . 2 1 . . . . 1 . 2 Reinforcement 5 | . . . 2 . . . . . . 3 . . . . . . . Assault 1 | . . . . . . 1 . . . . . . . . . . . Garrison 1 | . . . . . . . . . . . . . . . 1 . . Intercept . | . . . . . . . . . . . . . . . . . . Searches Triggered . | . . . . . . . . . . . . . . . . . . Construction Impeded 1 | . . . . . . . . . . 1 . . . . . . . Haulers Reinforced 2 | . . . . . . . . . . 2 . . . . . . . Active Scanning Responses . | . . . . . . . . . . . . . . . . . . Cargo Convoy Interrupts . | . . . . . . . . . . . . . . . . . . Stealth | -11 -10 -10 -9 -9 -9 -8 -8 -8 -7 -7 -7 -7 -5 -5 -4 -4 -4 --------- Run | Yrd Mat Min Mat Min Exi Min Mat Gar Fac Sto Rec Scr Fac DSF Fac Gar Fac Distress Signals 7 | . . . 2 . . . . . 1 3 . . . . 1 . . Communications Jammed . | . . . . . . . . . . . . . . . . . . Distress Signals . | . . . . . . . . . . . . . . . . . . Times Spotted 202 | . 24 4 7 . . 16 . 29 24 36 . . . 1 11 36 14 Peak Tracking Total 9 | . 5 2 4 . . 4 . 5 3 9 . . . 1 5 5 4 Tactical Retreats 9 | . 3 . . . . 1 . 1 2 . . . . . . 1 1 Traps | -11 -10 -10 -9 -9 -9 -8 -8 -8 -7 -7 -7 -7 -5 -5 -4 -4 -4 ------- Run | Yrd Mat Min Mat Min Exi Min Mat Gar Fac Sto Rec Scr Fac DSF Fac Gar Fac Traps Triggered 14 | . 3 . . . . . . 6 2 1 . . . . . 1 1 Indirectly . | . . . . . . . . . . . . . . . . . . Trap Hack Attempts . | . . . . . . . . . . . . . . . . . . Triggered . | . . . . . . . . . . . . . . . . . . Disarmed . | . . . . . . . . . . . . . . . . . . Reprogrammed . | . . . . . . . . . . . . . . . . . . Reused . | . . . . . . . . . . . . . . . . . . Traps Extracted . | . . . . . . . . . . . . . . . . . . Installed . | . . . . . . . . . . . . . . . . . . Triggered . | . . . . . . . . . . . . . . . . . . Machines | -11 -10 -10 -9 -9 -9 -8 -8 -8 -7 -7 -7 -7 -5 -5 -4 -4 -4 ---------- Run | Yrd Mat Min Mat Min Exi Min Mat Gar Fac Sto Rec Scr Fac DSF Fac Gar Fac Machines Disabled 20 | . . 1 . . . 2 . 4 2 2 . . . . 5 4 . Max in Single Turn 5 | . . 1 . . . 1 . 1 1 1 . . . . 5 1 . Garrison Access 1 | . . . . . . . . . 1 . . . . . . . . Garrison Relay 4 | . . . . . . . . 3 . . . . . . . 1 . Machines Repaired . | . . . . . . . . . . . . . . . . . . Machines Dismantled . | . . . . . . . . . . . . . . . . . . Machines Sabotaged . | . . . . . . . . . . . . . . . . . . Overloaded Fab Kills . | . . . . . . . . . . . . . . . . . . Hacking | -11 -10 -10 -9 -9 -9 -8 -8 -8 -7 -7 -7 -7 -5 -5 -4 -4 -4 --------- Run | Yrd Mat Min Mat Min Exi Min Mat Gar Fac Sto Rec Scr Fac DSF Fac Gar Fac Machines Accessed 25 | . 2 . . . 2 . 1 1 8 2 1 . 1 . 4 1 2 Terminals 18 | . 2 . . . . . . 1 6 2 1 . 1 . 2 1 2 Fabricators 1 | . . . . . . . . . . . . . . . 1 . . Repair Stations . | . . . . . . . . . . . . . . . . . . Recycling Units . | . . . . . . . . . . . . . . . . . . Scanalyzers 1 | . . . . . . . . . 1 . . . . . . . . Garrison Access 3 | . . . . . . . 1 . 1 . . . . . 1 . . Total Hacks 57 | . 5 . . . 2 . 4 1 24 6 2 . 1 . 6 2 4 Successful 26 | . 3 . . . 2 . 1 1 8 3 . . 1 . 4 1 2 Failed 31 | . 2 . . . . . 3 . 16 3 2 . . . 2 1 2 Catastrophic 6 | . 1 . . . . . . . 3 1 1 . . . . . . Database Lockouts . | . . . . . . . . . . . . . . . . . . Manual 14 | . 3 . . . 1 . . . 5 3 . . . . . 2 . Terminals 41 | . 5 . . . . . . 1 17 6 2 . 1 . 3 2 4 Fabricators 2 | . . . . . . . . . . . . . . . 2 . . Repair Stations . | . . . . . . . . . . . . . . . . . . Recycling Units . | . . . . . . . . . . . . . . . . . . Scanalyzers 6 | . . . . . . . . . 6 . . . . . . . . Garrison Access 6 | . . . . . . . 4 . 1 . . . . . 1 . . Terminal Hacks 15 | . 3 . . . 2 . . 1 3 2 . . 1 . 1 . 2 Record 1 | . . . . . 1 . . . . . . . . . . . . Robot Schematic 1 | . . . . . . . . . 1 . . . . . . . . Robot Analysis 1 | . 1 . . . . . . . . . . . . . . . . Prototype ID Bank 4 | . 1 . . . . . . . 1 1 . . . . . . 1 Open DSF 2 | . . . . . . . . . . . . . 1 . 1 . . Branch Access Points 3 | . 1 . . . . . . . . 1 . . . . . . 1 Zone Layout 1 | . . . . . . . . . 1 . . . . . . . . Garrison Registry 1 | . . . . . . . . 1 . . . . . . . . . Proto ID Catalog 1 | . . . . . 1 . . . . . . . . . . . . Fabricator Hacks 2 | . . . . . . . . . . . . . . . 2 . . Network Status 1 | . . . . . . . . . . . . . . . 1 . . Build 1 | . . . . . . . . . . . . . . . 1 . . Repair Station Hacks . | . . . . . . . . . . . . . . . . . . Recycling Unit Hacks . | . . . . . . . . . . . . . . . . . . Scanalyzer 4 | . . . . . . . . . 4 . . . . . . . . Retrieve Study 4 | . . . . . . . . . 4 . . . . . . . . Garrison Access Hacks 3 | . . . . . . . 1 . 1 . . . . . 1 . . Unlock Access 2 | . . . . . . . 1 . . . . . . . 1 . . Seal Access 1 | . . . . . . . . . 1 . . . . . . . . Unauthorized Hacks 2 | . . . . . . . . . . 1 . . . . . 1 . Terminals 2 | . . . . . . . . . . 1 . . . . . 1 . Disrupt 1 | . . . . . . . . . . 1 . . . . . . . Override 1 | . . . . . . . . . . . . . . . . 1 . Fabricators . | . . . . . . . . . . . . . . . . . . Repair Stations . | . . . . . . . . . . . . . . . . . . Recycling Units . | . . . . . . . . . . . . . . . . . . Scanalyzers . | . . . . . . . . . . . . . . . . . . Garrison Access . | . . . . . . . . . . . . . . . . . . Data Cores Recovered 1 | . . . . . . . . . 1 . . . . . . . . Used . | . . . . . . . . . . . . . . . . . . Hacking Detections 17 | . 2 . . . . . 1 . 6 2 1 . . . 3 1 1 Full Trace Events 7 | . . . . . . . 1 . 4 1 1 . . . . . . Feedback Events . | . . . . . . . . . . . . . . . . . . Feedback Blocked . | . . . . . . . . . . . . . . . . . . Robot Schematics Acquired 1 | . . . . . . . . . 1 . . . . . . . . Robots Built . | . . . . . . . . . . . . . . . . . . Authchips . | . . . . . . . . . . . . . . . . . . Time . | . . . . . . . . . . . . . . . . . . Total Robot Build Rating . | . . . . . . . . . . . . . . . . . . Part Schematics Acquired . | . . . . . . . . . . . . . . . . . . Parts Built 2 | . . . . . . . . . . . . . . . 2 . . Authchips . | . . . . . . . . . . . . . . . . . . Time 69 | . . . . . . . . . . . . . . . 69 . . Total Part Build Rating 18 | . . . . . . . . . . . . . . . 18 . . Part Studies Acquired 4 | . . . . . . . . . 4 . . . . . . . . Parts Repaired . | . . . . . . . . . . . . . . . . . . Time . | . . . . . . . . . . . . . . . . . . Parts Recycled . | . . . . . . . . . . . . . . . . . . Recycled Matter . | . . . . . . . . . . . . . . . . . . Retrieved Matter . | . . . . . . . . . . . . . . . . . . Retrieved Components . | . . . . . . . . . . . . . . . . . . Parts Scanalyzed . | . . . . . . . . . . . . . . . . . . Part Schematics Acquired . | . . . . . . . . . . . . . . . . . . Parts Damaged . | . . . . . . . . . . . . . . . . . . Bothacking | -11 -10 -10 -9 -9 -9 -8 -8 -8 -7 -7 -7 -7 -5 -5 -4 -4 -4 ------------ Run | Yrd Mat Min Mat Min Exi Min Mat Gar Fac Sto Rec Scr Fac DSF Fac Gar Fac Used RIF Installer . | . . . . . . . . . . . . . . . . . . Robots Hacked . | . . . . . . . . . . . . . . . . . . Non-combat . | . . . . . . . . . . . . . . . . . . Combat . | . . . . . . . . . . . . . . . . . . Robot Hacks Applied . | . . . . . . . . . . . . . . . . . . Relay Couplers Released 20 | . . . . . . . . 16 . . . . . . . 4 . Machine Destruction 17 | . . . . . . . . 13 . . . . . . . 4 . Programmers 3 | . . . . . . . . 3 . . . . . . . . . Fabnet Peak Effective % . | . . . . . . . . . . . . . . . . . . Robots Rewired 4 | . . . . . . . . . . . . . . . . 4 . Allies Hacked . | . . . . . . . . . . . . . . . . . . Hacks Repelled . | . . . . . . . . . . . . . . . . . . Allies | -11 -10 -10 -9 -9 -9 -8 -8 -8 -7 -7 -7 -7 -5 -5 -4 -4 -4 -------- Run | Yrd Mat Min Mat Min Exi Min Mat Gar Fac Sto Rec Scr Fac DSF Fac Gar Fac Total Allies 9 | . . . . . . . . 3 . 1 . . . . . 5 . Largest Group 4 | . . . . . . . . 3 . 1 . . . . . 4 . Highest-Rated Group 206 | . . . . . . . . 206 . 57 . . . . . 142 . Highest-Rated Ally 142 | . . . . . . . . 142 . 57 . . . . . 46 . Initial Warlord ECA Mod 6 | . . . . . . . . . 4 4 4 4 2 2 1 1 6 Total Orders . | . . . . . . . . . . . . . . . . . . Ally Attacks 67 | . . . . . . . . 39 . 9 . . . . . 19 . Total Damage 2717 | . . . . . . . . 1505 . 537 . . . . . 675 . Kills 22 | . . . . . . . . 15 . 5 . . . . . 2 . Allies Corrupted . | . . . . . . . . . . . . . . . . . . Allies Melted 2 | . . . . . . . . 1 . . . . . . . 1 . X0-1V1 Amusement Gains 154 | . 26 . . . . . . 30 . . . . 10 40 15 32 1 Average Entertainment 44 | . 14 10 5 3 . 2 1 18 28 10 4 . 13 43 68 91 99 Good Acts 38 | . 3 1 1 . . 3 . 7 3 2 . . . . 1 11 6 Bad Acts 34 | . . . 2 . . 7 . 4 5 5 . . . 1 2 7 1 Intel | -11 -10 -10 -9 -9 -9 -8 -8 -8 -7 -7 -7 -7 -5 -5 -4 -4 -4 ------- Run | Yrd Mat Min Mat Min Exi Min Mat Gar Fac Sto Rec Scr Fac DSF Fac Gar Fac Active Infowar (turns) 2315 | . 425 27 183 86 203 246 15 461 . . . . . . . . 669 Sensors 332 | . . . . . . . . . . . . . . . . . 332 Terrain 476 | . . . . . . . 15 461 . . . . . . . . . Structural 1170 | . 425 27 183 86 203 246 . . . . . . . . . . . Jamming 337 | . . . . . . . . . . . . . . . . . 337 Robot Analysis Total 1 | . 1 . . . . . . . . . . . . . . . . Derelict Logs Recovered 1 | . . . . 1 . . . . . . . . . . . . . Drone Launches . | . . . . . . . . . . . . . . . . . . Drone Recoveries . | . . . . . . . . . . . . . . . . . . Exploration | -11 -10 -10 -9 -9 -9 -8 -8 -8 -7 -7 -7 -7 -5 -5 -4 -4 -4 ------------- Run | Yrd Mat Min Mat Min Exi Min Mat Gar Fac Sto Rec Scr Fac DSF Fac Gar Fac Turns Passed 7655 | 54 748 152 183 86 203 529 17 974 1149 547 83 339 5 81 468 1223 814 Spaces Moved 4776 | 50 436 97 116 90 212 363 14 512 721 287 79 340 3 55 295 641 465 Core 15 | 13 . . . . . . . 2 . . . . . . . . . Treads . | . . . . . . . . . . . . . . . . . . Legs 2782 | . . . . . . . . 129 721 287 79 340 3 55 295 641 232 Wheels 1979 | 37 436 97 116 90 212 363 14 381 . . . . . . . . 233 Hover . | . . . . . . . . . . . . . . . . . . Flight . | . . . . . . . . . . . . . . . . . . Fastest Speed 50 | 50 90 95 95 95 95 95 105 105 105 99 99 99 99 97 110 110 93 Average Speed 110 | 79 104 103 95 95 95 106 105 137 110 107 99 99 99 104 110 118 115 Slowest Speed 600 | 90 115 105 95 95 95 135 105 600 190 176 99 99 99 110 110 120 190 Overloaded Moves . | . . . . . . . . . . . . . . . . . . Propulsion Burnouts . | . . . . . . . . . . . . . . . . . . Robots Hopped . | . . . . . . . . . . . . . . . . . . Potential Cave-ins 2 | . . . . . . . . . . 2 . . . . . . . Cave-ins Triggered . | . . . . . . . . . . . . . . . . . . Exploration Rate (%) 34 | 4 61 26 23 27 60 74 4 60 20 45 17 30 . 50 10 66 11 Regions Visited 17 Branch Regions 7 Pre-discovered Areas 1 | . . . . . 1 . . . . . . . . . . . . Known Exits Taken 7 | . 1 1 . . . 1 1 . . 1 . . 1 . 1 . . Unknown Exits Taken 7 | 1 . . 1 1 1 . . . 1 . 1 1 . . . . . Scrap Searched 2 | . . 1 . 1 . . . . . . . . . . . . . Spaces Dug 3 | . . . . . . . . . . . . . . . . 1 2 Terrain Destroyed 133 | . . . . . . . . 3 5 27 1 . . . 29 66 2 Melee 2 | . . . . . . . . . . . . . . . . . 2 Projectile 87 | . . . . . . . . 2 5 27 1 . . . 4 48 . AOE 43 | . . . . . . . . . . . . . . . 25 18 . Terrain Rammed . | . . . . . . . . . . . . . . . . . . Walls Destroyed . | . . . . . . . . . . . . . . . . . . Machines Disabled . | . . . . . . . . . . . . . . . . . . Actions | -11 -10 -10 -9 -9 -9 -8 -8 -8 -7 -7 -7 -7 -5 -5 -4 -4 -4 --------- Run | Yrd Mat Min Mat Min Exi Min Mat Gar Fac Sto Rec Scr Fac DSF Fac Gar Fac Total 6187 | 64 593 125 153 90 214 424 16 641 954 449 83 343 5 78 408 887 660 Wait 559 | . 70 11 . . . 13 . 7 100 113 . . . . 87 42 116 Move 4756 | 49 435 96 115 89 211 362 13 511 720 286 78 339 2 54 294 637 465 Hop . | . . . . . . . . . . . . . . . . . . Pick Up 102 | 9 13 2 10 1 1 5 . 15 18 4 3 2 . 6 2 10 1 Fast Attach 61 | . . . . . . . . 1 10 1 . . . 7 2 22 18 Attach 70 | 6 4 3 2 . . 4 3 13 12 3 . . 2 2 3 9 4 Detach 8 | . . 1 . . . . . 1 1 . . . 1 . 1 . 3 Swap 33 | . 4 . 3 . . 1 . 2 14 2 . . . 2 2 1 2 Drop 59 | . 1 . 5 . 2 . . 1 21 4 1 2 . 7 4 8 3 Fire 473 | . 66 12 18 . . 39 . 65 58 34 1 . . . 12 123 45 Melee 3 | . . . . . . . . . . . . . . . . . 3 Ram 1 | . . . . . . . . . . 1 . . . . . . . Kick 7 | . . . . . . . . . . 1 . . . . 1 5 . Crush . | . . . . . . . . . . . . . . . . . . Escape Stasis 25 | . . . . . . . . 25 . . . . . . . . . Rewire 30 | . . . . . . . . . . . . . . . . 30 . Trap . | . . . . . . . . . . . . . . . . . . Miscellaneous . | . . . . . . . . . . . . . . . . . . Route ------- -11/Scrapyard -10/Materials (discovered 5 exits: *Mat x3 / *Min / [*Sub]) -10/Mines -9/Materials (discovered 2 exits: Mat / [*Min]) -9/Mines -9/Exiles -8/Mines (discovered 2 exits: *Mat x2) -8/Materials (discovered 2 exits: Fac / Gar) -8/Garrison (discovered 3 exits: *Fac x3) -7/Factory (discovered 3 exits: *Fac x2 / *Sto) -7/Storage -7/Recycling -7/Scraptown -5/Factory -5/DSF -4/Factory -4/Garrison (discovered 3 exits: *Fac x3) -4/Factory (discovered 3 exits: Upp x2 / Arm) History --------- Turn | Location | Event 33 | -11/Scrapyard | Discovered new exit (range 13) 55 | -11/Scrapyard | Entered Materials 317 | -10/Materials | Build established: Mutant 366 | -10/Materials | Discovered new exit (range 15) 444 | -10/Materials | Identified exit to Mines 490 | -10/Materials | Discovered new exit (range 9) 624 | -10/Materials | Discovered new exit (range 6) 645 | -10/Materials | Prayed at D.C.S.S. Altar Unit 757 | -10/Materials | Discovered new exit (range 17) 781 | -10/Materials | Core integrity fell below 50% 786 | -10/Materials | Inventory capacity permanently improved by X0-1V1 (+1; -100 max core) 803 | -10/Materials | Entered Mines 840 | -10/Mines | Identified exit to Materials 840 | -10/Mines | X0-1V1 revealed exit location to -9/Materials 955 | -10/Mines | Entered Materials 955 | -9/Materials | Evolved 2 slots: Utility x2 1098 | -9/Materials | Identified exit to Materials 1098 | -9/Materials | X0-1V1 revealed exit location to -8/Materials 1126 | -9/Materials | Discovered new exit (range 13) 1138 | -9/Materials | Entered Mines 1186 | -9/Mines | Learned 2 Materials zone layouts 1220 | -9/Mines | Deemed a non-threat by the Exiles lab entrance 1220 | -9/Mines | Discovered new exit (range 5) 1224 | -9/Mines | Entered Exiles 1228 | -9/Exiles | Build established: Scavenger-Mutant 1247 | -9/Exiles | Met 8R-AWN 1264 | -9/Exiles | Met EX-HEX 1290 | -9/Exiles | Met EX-BIN 1301 | -9/Exiles | Aligned with FarCom system 1302 | -9/Exiles | Given EX-Vault access code 1325 | -9/Exiles | Opened EX-Vault 1334 | -9/Exiles | Found Skeleton Box 1356 | -9/Exiles | Warned to stay clear of 0b10 Research branches 1386 | -9/Exiles | Met EX-DEC 1390 | -9/Exiles | Learned location of Zion (-6) 1419 | -9/Exiles | Discovered new exit (range 10) 1427 | -9/Exiles | Left Exiles lab with Skeleton Box 1427 | -9/Exiles | Entered Mines 1497 | -8/Mines | Weapon slot count permanently improved by X0-1V1 (+1) 1499 | -8/Mines | X0-1V1 sent hostile C-17 Slicer (x1) 1704 | -8/Mines | Lost 3 parts (1n1u1w) 1769 | -8/Mines | X0-1V1 sent you into danger 1798 | -8/Mines | X0-1V1 revealed exit location to -8/Materials 1939 | -8/Mines | Discovered exit to Materials (range 16) 1956 | -8/Mines | Entered Materials 1956 | -8/Materials | Evolved 2 slots: Propulsion x1, Utility x1 1957 | -8/Materials | Identified exit to Factory 1972 | -8/Materials | Identified exit to Garrison 1973 | -8/Materials | Entered Garrison 1984 | -8/Garrison | X0-1V1 upgraded hostiles (x1) 1998 | -8/Garrison | X0-1V1 sent allied H-71 Marshal (x1) 2023 | -8/Garrison | Lost 3 parts (2n1u) 2074 | -8/Garrison | Sight range permanently improved by X0-1V1 (+1; -150 max core) 2095 | -8/Garrison | Triggered checkpoint 2101 | -8/Garrison | Garrison Relay disabled 2202 | -8/Garrison | Lost 3 parts (1n1u1w) 2260 | -8/Garrison | Discovered exit to Factory (range 11) 2272 | -8/Garrison | Build established: Scavenger-Skirmisher 2291 | -8/Garrison | Triggered checkpoint 2311 | -8/Garrison | Rescued a captive Derelict 2315 | -8/Garrison | X0-1V1 activates XOMVISION 2321 | -8/Garrison | Rescued a captive Derelict 2417 | -8/Garrison | Triggered checkpoint 2417 | -8/Garrison | Garrison Relay disabled 2460 | -8/Garrison | Discovered exit to Factory (range 74) 2460 | -8/Garrison | Discovered exit to Factory (range 65) 2460 | -8/Garrison | Discovered exit to Factory (range 12) 2469 | -8/Garrison | Lost 4 parts (1n2u1w) 2661 | -8/Garrison | Lost 4 parts (1p1n1u1w) 2691 | -8/Garrison | Triggered checkpoint 2831 | -8/Garrison | Triggered checkpoint 2879 | -8/Garrison | Garrison Relay disabled 2947 | -8/Garrison | Entered Factory 2947 | -7/Factory | Evolved 2 slots: Propulsion x2 3010 | -7/Factory | X0-1V1 foreshadows a heat wave 3102 | -7/Factory | X0-1V1 activates XOMVISION 3170 | -7/Factory | Ambient heat levels rising (+10) 3309 | -7/Factory | Ambient heat levels rising (+10) 3400 | -7/Factory | X0-1V1 announced a LAN party 3434 | -7/Factory | Imp. Carbon-fiber Leg reconfigured into Item Mimic 3499 | -7/Factory | Ambient heat levels falling (-10) 3614 | -7/Factory | Discovered new exit (range 3) 3640 | -7/Factory | Identified exit to Factory 3641 | -7/Factory | Ambient heat levels falling (-10) 3886 | -7/Factory | Discovered exit to Factory (range 8) 4086 | -7/Factory | Discovered new exit (range 8) 4096 | -7/Factory | Entered Storage 4352 | -7/Storage | Identified exit to Recycling 4352 | -7/Storage | X0-1V1 sent hostile X-57 Shotgunner (x2) 4531 | -7/Storage | X0-1V1 activates XOMVISION 4554 | -7/Storage | Core integrity fell below 50% 4560 | -7/Storage | X0-1V1 sent allied Chaos Knight (x1) 4609 | -7/Storage | X0-1V1 upgraded hostiles (x3) 4639 | -7/Storage | Used back door to open Recycling access 4643 | -7/Storage | Entered Recycling 4703 | -7/Recycling | Scanned before Scraplab entrance 4717 | -7/Recycling | Entered Scraplab 4724 | -7/Recycling | Discovered new exit (range 2) 4726 | -7/Recycling | Entered Scraptown 4761 | -7/Scraptown | Visited Assassins FH 4774 | -7/Scraptown | Visited Fellowship of the Rings 4788 | -7/Scraptown | Visited Awakened 4799 | -7/Scraptown | Visited Spacefarers 4805 | -7/Scraptown | Visited CPS Storage 4834 | -7/Scraptown | Visited IN-MT5's Study 4873 | -7/Scraptown | Visited Symbiants 4905 | -7/Scraptown | Turned away by UFD registrar 5015 | -7/Scraptown | Build established: Scavenger-Tank 5059 | -7/Scraptown | Discovered new exit (range 7) 5065 | -7/Scraptown | Entered Factory 5065 | -5/Factory | Evolved 4 slots: Power x1, Propulsion x1, Utility x1, Weapon x1 5070 | -5/Factory | Identified exit to DSF 5070 | -5/Factory | Entered DSF 5094 | -5/DSF | Discovered new exit (range 17) 5103 | -5/DSF | Additional patrols routed to DSF 5135 | -5/DSF | Lost 5 parts (1n3u1w) 5151 | -5/DSF | Entered Factory 5151 | -4/Factory | Evolved 2 slots: Utility x1, Weapon x1 5191 | -4/Factory | X0-1V1 redirected Transport squads to designated parking area 5269 | -4/Factory | Found Quantum Capacitor 5323 | -4/Factory | System corruption reached 10% 5383 | -4/Factory | Fabricated Lgt. Quantum Reactor (x2) 5581 | -4/Factory | Garrison activated, responded to threat 5618 | -4/Factory | Identified exit to Garrison 5619 | -4/Factory | Entered Garrison 5681 | -4/Garrison | X0-1V1 turns hostiles against one another 5765 | -4/Garrison | Garrison Relay disabled 5781 | -4/Garrison | Triggered checkpoint 5850 | -4/Garrison | Spotted B-86 Titan 5875 | -4/Garrison | Triggered checkpoint 5879 | -4/Garrison | Allies destroyed B-86 Titan 5911 | -4/Garrison | Triggered checkpoint 5931 | -4/Garrison | Lost 4 allies 5939 | -4/Garrison | Triggered checkpoint 5980 | -4/Garrison | X0-1V1 sent hostile Savage (x2) 6025 | -4/Garrison | Destroyed 9 combat bots 6033 | -4/Garrison | Lost 10 parts (1p3n3u3w) 6049 | -4/Garrison | System corruption reached 30% 6247 | -4/Garrison | Triggered checkpoint 6312 | -4/Garrison | Build established: Scavenger-Skirmisher 6313 | -4/Garrison | Discovered new exit (range 12) 6326 | -4/Garrison | Attempted to access garrison exit controls, blocked by remote lockdown 6363 | -4/Garrison | Triggered checkpoint 6411 | -4/Garrison | X0-1V1 sent hostile Thug (x4) 6467 | -4/Garrison | Identified exit to Factory 6483 | -4/Garrison | Core integrity restored by X0-1V1 (+243) 6572 | -4/Garrison | Lost 5 parts (2p1u2w) 6693 | -4/Garrison | X0-1V1 activates XOMVISION 6727 | -4/Garrison | X0-1V1 vaporized surrounding terrain (radius 15) 6798 | -4/Garrison | Lost 4 parts (3n1u) 6842 | -4/Garrison | Entered Factory 6896 | -4/Factory | Build established: Scavenger-Mutant 6993 | -4/Factory | Core integrity fell below 50% 7020 | -4/Factory | Core integrity fell below 20% 7074 | -4/Factory | Lost 11 parts (1p4n4u2w) 7281 | -4/Factory | Lost 3 parts (2u1w) 7336 | -4/Factory | Identified exit to Upper Caves 7336 | -4/Factory | Identified exit to Armory 7482 | -4/Factory | Build established: Scavenger-Skirmisher 7528 | -4/Factory | X0-1V1 activates XOMVISION 7656 | -4/Factory | Destroyed by P-70 Sage with High-powered Shock Rifle Last Messages --------------- 07461_ Dropped Phase Gun. 07528_ Suggestive images of robots vie for attention in your data streams. 07528_ X0-1V1: "Enjoy your XOMVISION!" 07531_ System corrupted: FCS attempts to trigger Field Laser. 07531_ System corrupted: Field Laser misfires. 07541_ U-05 Engineer builds a Wall. 07571_ K-01 Serf cleans the Subcomponent Replicator. 07601_ System corrupted: Energy discharge (-88). 07607_ ALERT: Security rotation in progress. 07639_ System corrupted: Heat flow error (+237). 07646_ Field Laser destroyed. 07646_ Wheel destroyed. 07646_ Flexi-carbon Leg destroyed. 07646_ Adv. Heat Sink destroyed. 07651_ Imp. Heat Sink melted. 07651_ P-70 Sage destroyed. 07656_ X0-1V1 guffaws! Map ----- +----------------------------------------------------+ | [ #????????????? | | "" #????????????? | | "" #????????????? | | """ #????????????? | | #+######+######## """ ######+####+##???????????? | | ?????# ????????# """ # #???????????? | | ??????#?????????# # """"""""" #???????????? | | ????????????????# "" # #???????????? | | ????????????????# "" # """"""""" #???????????? | | ????????????????# """ # #???????????? | | ????????????????# """ # """"""""" #???????????? | | ???????????????+ """ # #???????????? | | ???????????????# # """"""""" #???????????? | | ???????????????#H "" #! #???????????? | | ???????????????# "" # """"""""" #???????????? | | ???????????????# """ # #???????????? | | ???????????????# """ # ! * #???????????? | | ???????????????# """ ##############???????????? | | ????????????????? # #???????????????? | | ??????????????????? # #???????????????? | | ????????????????????? # #???????????????? | | ????????????????????? +| #???????????????? | | ????????????????????? #%p #???????????????? | | ????????????????????????#= #???????????????? | | ????????????????????????# #???????????????? | | ????????????????????????#@ #???????????????? | | ????????????????????????# #???????????????? | | ????????????????????????##########???????????????? | | ?????????????????o??????????###??????????????????? | | ??????????????t??????????????????????????????????? | | ?????????????????????????????????????????????????? | | ?????????????????????????????????????????????????? | | ?????????????????????????????????????????????????? | | ?????????????????????????????????????????????????? | | ????????????????????????????k????????????????????? | | ?????????????????????????????????????????????????? | | ?????????????????????????????????????????????????? | | ?????????????????????????????????????????????????? | | ?????????????????????????????????????????????????? | | ?????????????????????????????????????????????????? | | ?????????????????????????????????????????????????? | | ???????????????????????????????Y?????????????????? | | ?????????????????????????????????????????????????? | | ?????????????????????????????????????????????????? | | ?????????????????????????????????????????????????? | | ?????????????????????????????????????????????????? | | ?????????????????????????????????????????????????? | | ?????????????????????????????????????????????????? | | ?????????????????????????????????????????????????? | | ?????????????????????????????????????????????????? | +----------------------------------------------------+ Best States ------------- Heat Dissipation 147 Coolant Potential 100 Energy Generation 45 Energy Capacity 1415 Matter Stores 1000 Matter Capacity 1000 Sight Range 19 Robot Scan Range 18 Terrain Scan Range 14 Terrain Scan Density 10 Jamming Range 14 Armor Coverage 750 Resistance: KI 22 Resistance: TH 25 Evasion (%) 55 Offensive Hacking 28 Item Schematics ----------------- None Robot Schematics ------------------ A-02 Transporter | -7/Factory | Hacked Fabricated ------------ Lgt. Quantum Reactor | x2 | -4/Factory | Preloaded Repaired ---------- Nothing Studied --------- Carbon-fiber Leg | -7/Factory | Hacked Adv. Assault Cannon | -7/Factory | Hacked Aluminum Leg | -7/Factory | Hacked Ion Engine | -7/Factory | Hacked Alien Tech Used ----------------- None Achievements -------------- None Challenges ------------ None Game ------ Seed BeamLongswordMicrothruster Manual? 0 Play Time 01:16:39 Cumulative 343.6 hours Start 2026.08.30 @ 05:33:44 End 2026.08.30 @ 06:48:59 Sessions 1 Manual Loads 0 Difficulty Rogue Special Mode None Game No. 262 Rogue 253 Adventurer 9 Explorer 0 Win Type - Total 4 Types 3/0/0/1/0/0/0/0/0/0 Lore% 87 Gallery% 72 Achievement% 52 Wizard Run 0 Options --------- Layout 1 ASCII 0 Keyboard 0 Movement Numpad Keybinds 0 Fullscreen 1 Font 24/Smallcaps Map View 50x35 Zoom Use 0% Tactical HUD 1 Map Filters NONE Filters NONE Steam 1 RUN: 71f76b0f-afc6-4c49-af83-805c13dfde40